Cogmind - Beta 15 @@@ ROGUE MODE // 2025.07.14 @ 20:53:08 Player: meowmeowm eo wmewo Result: Destroyed self with Grenade Launcher Performance ------------- Evolutions (0) 0 Regions Visited (1) 200 Robots Destroyed (16) 80 Value Destroyed (394) 394 Prototype IDs (2) 40 Alien Tech Used (0) 0 Bonus (0) 0 TOTAL SCORE: 714 Bonus ------- None Cogmind --------- Core Integrity 0/250 Matter 172/300 Energy 249/250 System Corruption 0% Temperature Cool (6) Movement Walking (120) Location -10/Materials Parts ------- > --- POWER (1) -------- Ion Engine > --- PROPULSION (2) --- Aluminum Leg Aluminum Leg > --- UTILITY (2) ------ Heat Sink Seismic Detector > --- WEAPON (2) ------- Assault Rifle Grenade Launcher > --- INVENTORY (5) ---- Heat Sink Small Storage Unit Medium Laser Beam Cannon Mining Laser Peak State ------------ > --- POWER ------------ Light Ion Engine > --- PROPULSION ------- Wheel Wheel > --- UTILITY ---------- Heat Sink Improved Terrain Scanner > --- WEAPON ----------- Medium Laser Light Assault Rifle > --- INVENTORY -------- Light Ion Engine Aluminum Leg Aluminum Leg Wheel Assault Rifle [Rating: 9] Favorites ----------- Power Ion Engine Engine Ion Engine Propulsion Aluminum Leg Leg Aluminum Leg Wheel Wheel Utility Seismic Detector Device Seismic Detector Weapon Grenade Launcher Energy Gun Medium Laser Ballistic Gun Assault Rifle Launcher Grenade Launcher Special Weapon Mining Laser Build | -11 -10 ------- Run | Yrd Mat Slots Evolved . | . . Power . | . . Propulsion . | . . Utility . | . . Weapon . | . . Parts Attached 18 | 8 10 Power 2 | 1 1 Engine 2 | 1 1 Core . | . . Reactor . | . . Propulsion 7 | 3 4 Treads . | . . Leg 5 | 1 4 Wheel 2 | 2 . Hover . | . . Flight . | . . Utility 4 | 2 2 Device 4 | 2 2 Storage . | . . Processor . | . . Hackware . | . . Protection . | . . Artifact . | . . Weapon 5 | 2 3 Energy Gun 1 | 1 . Energy Cannon . | . . Ballistic Gun 2 | 1 1 Ballistic Cannon . | . . Launcher 1 | . 1 Special Weapon 1 | . 1 Impact Weapon . | . . Slashing Weapon . | . . Piercing Weapon . | . . Special Melee Weapon . | . . Unidentified Prototypes . | . . Parts Lost 4 | . 4 Power 1 | . 1 Propulsion 2 | . 2 Utility . | . . Weapon 1 | . 1 Highest Loss Streak 4 | . 4 To Critical Strikes . | . . Average Backups 3 | 2 3 Power . | . . Propulsion . | 1 . Utility 1 | . 1 Weapon 2 | . 2 Tool/Special . | . . Unused Backups 9 | 4 5 Power 1 | 1 . Propulsion 2 | 2 . Utility 2 | . 2 Weapon 4 | 1 3 Tool/Special . | . . Average Slot Usage (%) 96 | . 96 Engine 13 | . 13 Leg 20 | . 20 Wheel 5 | . 5 Device 28 | . 28 Energy Gun 4 | . 4 Ballistic Gun 14 | . 14 Launcher 9 | . 9 Peak Build Rating 9 | 9 9 Average Rating 6 | 3 7 On Entrance 4 | . 9 Naked Turns . | . . Heaviest Build 12 | 8 12 Greatest Support 20 | 20 20 Greatest Overweight (x) 1 | . 1 Average Overweight (x) . | . . Largest Inventory Capacity 5 | 5 5 Average Capacity 5 | 5 5 Most Carried 5 | 5 5 Average Carried 3 | 2 3 Final Capacity 5 | 5 5 Final Carried 5 | 2 5 Class Distribution -------------------- 61% | Scavenger-Mutant 38% | Mutant Dominant Class ---------------- Scavenger-Mutant | -10/Materials Resources | -11 -10 ----------- Run | Yrd Mat Matter Collected 559 | 338 221 Remotely . | . . Salvage Created 413 | 90 323 Parts 34 | 11 23 Haulers Intercepted . | . . Recyclers Shooed 1 | . 1 Parts Field Recycled . | . . Retrieved Matter . | . . Parts Self-Destructed . | . . Prevented . | . . Kills | -11 -10 ------- Run | Yrd Mat Combat Hostiles Destroyed 8 | 1 7 Guns 7 | 1 6 AOE 1 | . 1 Classes Destroyed 6 | 3 3 Worker 1 | 1 . Tunneler 3 | 2 1 Recycler 1 | . 1 Operator 1 | . 1 Watcher 2 | . 2 Grunt 8 | 1 7 Best Kill Streak 4 | 4 4 Combat Bots Only 2 | 1 2 Max Kills in Single Turn 1 | 1 1 Gunslinging . | . . Exploded 1 | . 1 Melee . | . . Uniques/NPCs Destroyed . | . . Combat | -11 -10 -------- Run | Yrd Mat Hostile Shots Fired 55 | 2 53 Missed 11 | . 11 Hits 44 | 2 42 Projectile 44 | 2 42 Critical Strikes 2 | . 2 Damage Taken 836 | 20 816 Core 280 | 10 270 Absorbed by Shields . | . . Core Remaining (%) 96 | 96 . Volleys Fired 49 | 8 41 Largest 2 | 2 2 Hottest 120 | 70 120 Shots Fired 93 | 16 77 Gun 73 | 16 57 Cannon . | . . Launcher 16 | . 16 Special 4 | . 4 Kinetic 49 | 8 41 Thermal 28 | 8 20 Explosive 16 | . 16 Electromagnetic . | . . Robot Hit Streak 9 | 3 9 Robot Miss Streak 4 | 3 4 Penetration Max . | . . Secondary Targets . | . . Shots Hit Robots 43 | 8 35 Core Hits 27 | 5 22 Critical Kills . | . . Critical Parts Destroyed . | . . Critical Strikes 2 | 2 . Burn 2 | 2 . Melee Attacks . | . . Impact . | . . Slashing . | . . Piercing . | . . Sneak Attacks . | . . Combat Hostiles . | . . Follow-up Attacks . | . . Damage Inflicted 1031 | 91 940 Guns 448 | 91 357 Cannons . | . . Explosions 511 | . 511 Melee . | . . Ramming . | . . Kinetic 246 | 27 219 Thermal 329 | 64 265 Explosive 456 | . 456 Electromagnetic . | . . Impact . | . . Slashing . | . . Piercing . | . . Highest Corruption . | . . Average Corruption . | . . Corruption Purged . | . . Corruption Blocked . | . . Overload Shots . | . . Overflow Damage 39 | . 39 Projectiles . | . . Explosions 39 | . 39 Melee . | . . Knockbacks . | . . Impact . | . . Kinetic . | . . Secondary . | . . Self-Inflicted Damage 267 | . 267 Shots 8 | . 8 Rammed . | . . Targets Rammed . | . . Kicked . | . . Crushed . | . . Highest Temperature 52 | 52 25 Average Temperature 15 | 22 12 Received Heat Transfer 357 | 12 345 Siege Activations . | . . Martial Activations . | . . Shielding Activations . | . . Robots Disrupted . | . . Combat Hostiles . | . . Robots Corrupted . | . . Combat Hostiles . | . . Parts Fried . | . . Impact Corruptions . | . . Robots Melted . | . . Combat Hostiles . | . . Parts Melted . | . . Heat Transferred 940 | 333 607 Parts Sabotaged . | . . Parts Stolen . | . . Parts Stripped . | . . Power Chain Reactions . | . . Alert | -11 -10 ------- Run | Yrd Mat Maximum Alert Level . | . . Low Security (%) 100 | 100 100 Level 1 . | . . Level 2 . | . . Level 3 . | . . Level 4 . | . . Level 5 . | . . High Security . | . . Max Security . | . . Peak Influence 123 | 20 123 Initial 6 | . 6 Average 42 | 3 53 Influence Increases 383 | 35 348 Destroy 0b10 Robot/C 160 | 20 140 Destroy 0b10 Robot/NC 40 | 15 25 Destroy Leader 34 | . 34 Successful Hack 7 | . 7 Disable Machine 30 | . 30 Destroy Structure 97 | . 97 Lose Combat Pursuer 15 | . 15 Influence Decreases 267 | 25 242 Entered New Map 4 | . 4 Time Decay 227 | 25 202 Lost Part 36 | . 36 Squads Dispatched 2 | . 2 Investigation 1 | . 1 Extermination . | . . Reinforcement 1 | . 1 Assault . | . . Garrison . | . . Intercept . | . . Searches Triggered . | . . Construction Impeded . | . . Haulers Reinforced . | . . Active Scanning Responses . | . . Cargo Convoy Interrupts . | . . Stealth | -11 -10 --------- Run | Yrd Mat Distress Signals . | . . Communications Jammed . | . . Distress Signals . | . . Times Spotted 16 | 1 15 Peak Tracking Total 3 | 1 3 Tactical Retreats 1 | . 1 Traps | -11 -10 ------- Run | Yrd Mat Traps Triggered 1 | . 1 Indirectly . | . . Trap Hack Attempts . | . . Triggered . | . . Disarmed . | . . Reprogrammed . | . . Reused . | . . Traps Extracted . | . . Installed . | . . Triggered . | . . Machines | -11 -10 ---------- Run | Yrd Mat Machines Disabled 2 | . 2 Max in Single Turn 2 | . 2 Machines Repaired . | . . Machines Dismantled . | . . Machines Sabotaged . | . . Overloaded Fab Kills . | . . Hacking | -11 -10 --------- Run | Yrd Mat Machines Accessed 4 | . 4 Terminals 2 | . 2 Fabricators . | . . Repair Stations 1 | . 1 Recycling Units 1 | . 1 Scanalyzers . | . . Garrison Access . | . . Total Hacks 12 | . 12 Successful 9 | . 9 Failed 3 | . 3 Catastrophic . | . . Database Lockouts . | . . Manual 1 | . 1 Terminals 7 | . 7 Fabricators . | . . Repair Stations 2 | . 2 Recycling Units 3 | . 3 Scanalyzers . | . . Garrison Access . | . . Terminal Hacks 5 | . 5 Record 2 | . 2 Prototype ID Bank 1 | . 1 Alert Level 1 | . 1 Dispatch Records 1 | . 1 Fabricator Hacks . | . . Repair Station Hacks 1 | . 1 Scan Component 1 | . 1 Recycling Unit Hacks 3 | . 3 Recycle Component 1 | . 1 Process 2 | . 2 Scanalyzer . | . . Garrison Access Hacks . | . . Unauthorized Hacks . | . . Terminals . | . . Fabricators . | . . Repair Stations . | . . Recycling Units . | . . Scanalyzers . | . . Garrison Access . | . . Data Cores Recovered 1 | . 1 Used . | . . Hacking Detections 4 | . 4 Full Trace Events 2 | . 2 Feedback Events . | . . Feedback Blocked . | . . Robot Schematics Acquired . | . . Robots Built . | . . Authchips . | . . Time . | . . Total Robot Build Rating . | . . Part Schematics Acquired . | . . Parts Built . | . . Authchips . | . . Time . | . . Total Part Build Rating . | . . Parts Repaired . | . . Time . | . . Parts Recycled 1 | . 1 Recycled Matter 7 | . 7 Retrieved Matter . | . . Retrieved Components . | . . Parts Scanalyzed . | . . Part Schematics Acquired . | . . Parts Damaged . | . . Bothacking | -11 -10 ------------ Run | Yrd Mat Used RIF Installer . | . . Robots Hacked . | . . Non-combat . | . . Combat . | . . Robot Hacks Applied . | . . Relay Couplers Released . | . . Fabnet Peak Effective % . | . . Robots Rewired . | . . Allies Hacked . | . . Hacks Repelled . | . . Allies | -11 -10 -------- Run | Yrd Mat Total Allies . | . . Largest Group . | . . Highest-Rated Group . | . . Highest-Rated Ally . | . . Total Orders . | . . Ally Attacks . | . . Total Damage . | . . Kills . | . . Allies Corrupted . | . . Allies Melted . | . . Intel | -11 -10 ------- Run | Yrd Mat Active Infowar (turns) 536 | 17 519 Terrain 17 | 17 . Seismic 519 | . 519 Robot Analysis Total . | . . Derelict Logs Recovered . | . . Drone Launches . | . . Drone Recoveries . | . . Exploration | -11 -10 ------------- Run | Yrd Mat Turns Passed 668 | 149 519 Spaces Moved 457 | 138 319 Core 62 | 61 1 Treads . | . . Legs 262 | . 262 Wheels 133 | 77 56 Hover . | . . Flight . | . . Fastest Speed 50 | 50 80 Average Speed 98 | 66 112 Slowest Speed 120 | 80 120 Overloaded Moves . | . . Propulsion Burnouts . | . . Robots Hopped . | . . Potential Cave-ins . | . . Cave-ins Triggered . | . . Exploration Rate (%) 31 | 7 55 Regions Visited 1 Branch Regions . Pre-discovered Areas . | . . Known Exits Taken . | . . Unknown Exits Taken 1 | 1 . Scrap Searched . | . . Spaces Dug 9 | . 9 Terrain Destroyed 143 | . 143 Melee . | . . Projectile 1 | . 1 AOE 142 | . 142 Terrain Rammed . | . . Walls Destroyed . | . . Machines Disabled . | . . Actions | -11 -10 --------- Run | Yrd Mat Total 585 | 185 400 Wait 12 | 2 10 Move 456 | 137 319 Hop . | . . Pick Up 26 | 14 12 Fast Attach 2 | 2 . Attach 15 | 10 5 Detach 4 | 4 . Swap 9 | 1 8 Drop 12 | 7 5 Fire 49 | 8 41 Melee . | . . Ram . | . . Kick . | . . Crush . | . . Escape Stasis . | . . Rewire . | . . Trap . | . . Miscellaneous . | . . Route ------- -11/Scrapyard -10/Materials (discovered 2 exits: [*Mat] / [*Sub]) History --------- Turn | Location | Event 2 | -11/Scrapyard | Met Revision 17 92 | -11/Scrapyard | Discovered new exit (range 8) 150 | -11/Scrapyard | Entered Materials 306 | -10/Materials | Lost 4 parts (1p2n1w) 408 | -10/Materials | Core integrity fell below 50% 448 | -10/Materials | Discovered new exit (range 15) 542 | -10/Materials | Discovered new exit (range 15) 567 | -10/Materials | Build established: Scavenger-Mutant 570 | -10/Materials | Core integrity fell below 20% 669 | -10/Materials | Destroyed self with Grenade Launcher Last Messages --------------- U-05 Engineer builds a Wall. R-06 Scavenger collects Heat Sink. U-05 Engineer builds a Wall. R-06 Scavenger collects Ion Engine. O-16 Technician: "IFF HANDSHAKE FAILED. SECURING TERMINAL." Destroyed Hover Unit. O-16 Technician destroyed. ALERT: Hostiles spotted, dispatching reinforcements to Terminal M003. [Achievement: Uninvited Guest] Acquired data core, extracted dynamic key. Decrypted 6 local trap positions from data. Dynamic keys make the first hack at an operator's terminal easier, if the connection is established before key expiry. The unstable cave ceiling collapses. K-01 Serf cleans the Nuclear Reactor. K-01 Serf collects debris. [Achievement: First Step to Greatness] Map ----- +----------------------------------------------------+ | ???????????????????????????????? | | ???????????????????????????????? | | ???????????????????????????????? | | ???????????????????????????????? | | ???????????????????????????????? | | ???????????????????????????????? | | ??????? ?????????????????????? | | ??????+ ?????????????????????? | | ??????# ????????????????????? | | ??????# #????????????????????? | | ??????# ##???????????????????? | | ??????# # ??????????????????? | | ??????# # ???? ????????????? | | ??????#g # ?""" #???????????? | | ??????# # """""#???????????? | | ??????# g # """""#???????????? | | ??????# # """""#??#######??? | | ??????# # """ #??# #### | | ??????# # #??# ## | | ??????# # #### # # | | ?????## ###### ### # | | ?????# | | ###### ####### ### # | | # #????######### # # | | # T #????????????# # # | | # @ ##???????????#### ## # | | # # # #####??????????#### # | | # #?????????????# | | # #?????????????# | | # # #?????????????### | | # """ ########????????? | | # """ ^ #????????? | | # """ # k ^ #??####### | | # """ # ^""" !! #??# | | ? # ^""" !! #??# T | | ?###### """ ^!! #??# [ | | ??????# ^g #??# | | ??????# #??# | | ??????+ """ #??# | | ??????# """ #??# """"" | | ??????# """ #??# """"" | | ??????# #??# """"" | | ??????# ??? #??# | | ??????# #???? #??# | | ??????# #????? #??####### | | ??????##/####+#????????????????? | | ??????? ??????????????????????? | | ???????????????????????????????? | | ???????????????????????????????? | | ???????????????????????????????? | +----------------------------------------------------+ Best States ------------- Heat Dissipation 39 Energy Generation 10 Energy Capacity 250 Matter Stores 300 Matter Capacity 300 Sight Range 16 Terrain Scan Range 16 Terrain Scan Density 10 Evasion (%) 55 Item Schematics ----------------- None Robot Schematics ------------------ None Fabricated ------------ Nothing Repaired ---------- Nothing Alien Tech Used ----------------- None Achievements -------------- First Step to Greatness Let's See Who's Tougher One Hack Too Far Uninvited Guest Challenges ------------ None Game ------ Seed LongswordAssemblyPrototype Manual? 0 Play Time 00:53:40 Cumulative 0.8 hours Start 2025.07.14 @ 19:44:52 End 2025.07.14 @ 20:53:08 Sessions 1 Manual Loads 0 Difficulty Rogue Special Mode None Game No. 1 Rogue 1 Adventurer 0 Explorer 0 Win Type - Total 0 Types 0/0/0/0/0/0/0/0/0/0 Lore% 0 Gallery% 1 Achievement% 1 Wizard Run 0 Options --------- Layout 1 ASCII 0 Keyboard 0 Movement Mouse Keybinds 0 Fullscreen 2 Font 24/Proggy Map View 25x17 Zoom Use 96% Tactical HUD 0 Map Filters NONE Filters NONE Steam 1 RUN: 9a1c5ca2-b717-45ed-9ddd-94eef31b662b